[Event "Early-Titled-Tuesday-Blitz-October-17-2023"]
[Site "Chess.com"]
[Date "2023.10.17"]
[Round "5"]
[White "DTChess"]
[Black "Ishowmoves57"]
[Result "1-0"]
[WhiteElo "2581"]
[BlackElo "2215"]
[TimeControl "180+1"]
[EndTime "8:56:17 PDT"]
[Termination "DTChess won by resignation"]

1. e4 {[%clk 0:03:00.9]} 1... c5 {[%clk 0:02:59.4]} 2. Nf3 {[%clk 0:03:00.9]}
2... Nc6 {[%clk 0:02:56.8]} 3. Nc3 {[%clk 0:03:00.7]} 3... Nf6 {[%clk
0:02:55.4]} 4. d4 {[%clk 0:03:00.8]} 4... cxd4 {[%clk 0:02:55.7]} 5. Nxd4 {[%clk
0:03:01.7]} 5... e5 {[%clk 0:02:54.7]} 6. Ndb5 {[%clk 0:03:01.9]} 6... d6 {[%clk
0:02:54.8]} 7. Bg5 {[%clk 0:03:00.7]} 7... a6 {[%clk 0:02:53.6]} 8. Na3 {[%clk
0:03:00.7]} 8... b5 {[%clk 0:02:53.1]} 9. Nd5 {[%clk 0:03:00.6]} 9... Be7 {[%clk
0:02:53.5]} 10. Bxf6 {[%clk 0:03:00.8]} 10... Bxf6 {[%clk 0:02:54.4]} 11. c3
{[%clk 0:03:01.3]} 11... O-O {[%clk 0:02:51]} 12. Nc2 {[%clk 0:03:00.9]} 12...
Bg5 {[%clk 0:02:51.2]} 13. a4 {[%clk 0:03:00.8]} 13... bxa4 {[%clk 0:02:47.4]}
14. Rxa4 {[%clk 0:03:00]} 14... Ne7 {[%clk 0:02:47.5]} 15. Nce3 {[%clk
0:02:59.7]} 15... Bb7 {[%clk 0:02:40.7]} 16. Bc4 {[%clk 0:02:51.2]} 16... Nxd5
{[%clk 0:02:32.1]} 17. Nxd5 {[%clk 0:02:49.5]} 17... Bxd5 {[%clk 0:02:31.5]} 18.
Bxd5 {[%clk 0:02:42.1]} 18... Rb8 {[%clk 0:02:27.5]} 19. Ra2 {[%clk 0:02:28.3]}
19... a5 {[%clk 0:02:16.4]} 20. O-O {[%clk 0:02:27.8]} 20... Qb6 {[%clk
0:02:16.9]} 21. b3 {[%clk 0:02:14.8]} 21... Qc5 {[%clk 0:02:12.9]} 22. Qd3
{[%clk 0:02:10.1]} 22... Bd8 {[%clk 0:02:07.7]} 23. g3 {[%clk 0:02:07.3]} 23...
Bb6 {[%clk 0:02:00.4]} 24. Kg2 {[%clk 0:02:07.4]} 24... Rbc8 {[%clk 0:01:56.6]}
25. Bc4 {[%clk 0:01:57.5]} 25... Rfd8 {[%clk 0:01:52.8]} 26. f4 {[%clk 0:01:57]}
26... exf4 {[%clk 0:01:48]} 27. Rxf4 {[%clk 0:01:54.6]} 27... Qg1+ {[%clk
0:01:43.6]} 28. Kh3 {[%clk 0:01:50.3]} 28... Rc7 {[%clk 0:01:24.1]} 29. Qd5
{[%clk 0:01:39.7]} 29... Qc5 {[%clk 0:00:59.1]} 30. Qd1 {[%clk 0:01:30.6]} 30...
Re7 {[%clk 0:00:46.9]} 31. Qf3 {[%clk 0:01:29.8]} 31... Rdd7 {[%clk 0:00:44.7]}
32. Bd5 {[%clk 0:01:28.3]} 32... g6 {[%clk 0:00:39.6]} 33. b4 {[%clk 0:01:22.8]}
33... axb4 {[%clk 0:00:38.8]} 34. cxb4 {[%clk 0:01:22]} 34... Qxb4 {[%clk
0:00:35]} 35. Ra8+ {[%clk 0:01:21.6]} 35... Kg7 {[%clk 0:00:34.8]} 36. e5 {[%clk
0:01:10.9]} 36... dxe5 {[%clk 0:00:32.1]} 37. Rxb4 {[%clk 0:01:09.8]} 1-0

[Event "Early-Titled-Tuesday-Blitz-October-17-2023"]
[Site "Chess.com"]
[Date "2023.10.17"]
[Round "5"]
[White "Lennis93"]
[Black "Laico"]
[Result "1-0"]
[WhiteElo "2711"]
[BlackElo "2446"]
[TimeControl "180+1"]
[EndTime "8:56:23 PDT"]
[Termination "Lennis93 won by resignation"]

1. c4 {[%clk 0:03:00.9]} 1... e5 {[%clk 0:02:37.1]} 2. g3 {[%clk 0:03:01.2]}
2... Nc6 {[%clk 0:02:37.1]} 3. Bg2 {[%clk 0:03:01.8]} 3... f5 {[%clk 0:02:37.9]}
4. Nc3 {[%clk 0:03:01]} 4... Nf6 {[%clk 0:02:38.8]} 5. e3 {[%clk 0:02:59.8]}
5... Bb4 {[%clk 0:02:38.3]} 6. Nge2 {[%clk 0:02:59]} 6... d6 {[%clk 0:02:38.6]}
7. a3 {[%clk 0:02:57.2]} 7... Bxc3 {[%clk 0:02:38.7]} 8. Nxc3 {[%clk 0:02:57]}
8... O-O {[%clk 0:02:39.6]} 9. O-O {[%clk 0:02:55.9]} 9... f4 {[%clk 0:02:36.8]}
10. d4 {[%clk 0:02:51.5]} 10... fxe3 {[%clk 0:02:34.2]} 11. Bxe3 {[%clk
0:02:50.1]} 11... Bg4 {[%clk 0:02:31.6]} 12. Qd2 {[%clk 0:02:44.2]} 12... exd4
{[%clk 0:02:25.8]} 13. Bxd4 {[%clk 0:02:43.8]} 13... Nxd4 {[%clk 0:02:21.1]} 14.
Qxd4 {[%clk 0:02:44.7]} 14... Qc8 {[%clk 0:02:18.1]} 15. Nd5 {[%clk 0:02:41.4]}
15... Nxd5 {[%clk 0:02:17.5]} 16. cxd5 {[%clk 0:02:16.9]} 16... Bh3 {[%clk
0:02:16.8]} 17. Rac1 {[%clk 0:02:15.8]} 17... Bxg2 {[%clk 0:02:13.5]} 18. Kxg2
{[%clk 0:02:16.7]} 18... Rf7 {[%clk 0:02:11.9]} 19. Rfe1 {[%clk 0:02:15.4]}
19... Qf5 {[%clk 0:02:06.4]} 20. f4 {[%clk 0:02:15]} 20... Raf8 {[%clk
0:01:44.9]} 21. Re4 {[%clk 0:02:14]} 21... g5 {[%clk 0:01:31.4]} 22. Rce1 {[%clk
0:02:09.1]} 22... gxf4 {[%clk 0:01:26.1]} 23. Rxf4 {[%clk 0:02:07.9]} 23... Qc2+
{[%clk 0:01:25.1]} 24. Kh1 {[%clk 0:01:58.2]} 24... h6 {[%clk 0:00:28]} 25. Rxf7
{[%clk 0:01:04.6]} 25... Rxf7 {[%clk 0:00:28.9]} 26. Re8+ {[%clk 0:01:04]} 26...
Kh7 {[%clk 0:00:29.1]} 27. Rh8+ {[%clk 0:00:58.2]} 27... Kg6 {[%clk 0:00:29.5]}
28. Rg8+ {[%clk 0:00:58.4]} 1-0

[Event "Early-Titled-Tuesday-Blitz-October-17-2023"]
[Site "Chess.com"]
[Date "2023.10.17"]
[Round "5"]
[White "Cheer_Down"]
[Black "kingapolak"]
[Result "1-0"]
[WhiteElo "2516"]
[BlackElo "2156"]
[TimeControl "180+1"]
[EndTime "8:56:26 PDT"]
[Termination "Cheer_Down won by resignation"]

1. e4 {[%clk 0:03:00.9]} 1... c5 {[%clk 0:02:58.7]} 2. Nf3 {[%clk 0:03:00.7]}
2... Nc6 {[%clk 0:02:58.6]} 3. Bb5 {[%clk 0:03:00.1]} 3... g6 {[%clk 0:02:56.1]}
4. Bxc6 {[%clk 0:02:59.9]} 4... dxc6 {[%clk 0:02:55.4]} 5. d3 {[%clk 0:02:58]}
5... Bg7 {[%clk 0:02:54.7]} 6. h3 {[%clk 0:02:56.8]} 6... e5 {[%clk 0:02:40.8]}
7. a4 {[%clk 0:02:50.8]} 7... b6 {[%clk 0:02:35.1]} 8. a5 {[%clk 0:02:48.2]}
8... Rb8 {[%clk 0:02:34]} 9. axb6 {[%clk 0:02:47.3]} 9... axb6 {[%clk
0:02:34.9]} 10. O-O {[%clk 0:02:41.8]} 10... Ne7 {[%clk 0:02:33.8]} 11. Nbd2
{[%clk 0:02:36.1]} 11... O-O {[%clk 0:02:00.8]} 12. Nc4 {[%clk 0:02:34.1]} 12...
f6 {[%clk 0:01:54.6]} 13. Be3 {[%clk 0:02:26.8]} 13... Be6 {[%clk 0:01:48.9]}
14. b3 {[%clk 0:02:23.6]} 14... Nc8 {[%clk 0:01:28.2]} 15. Ra6 {[%clk
0:02:17.8]} 15... Nd6 {[%clk 0:01:23]} 16. Nxd6 {[%clk 0:01:54.6]} 16... Qxd6
{[%clk 0:01:23.9]} 17. Qd2 {[%clk 0:01:54.7]} 17... Bc8 {[%clk 0:01:13.6]} 18.
Ra7 {[%clk 0:01:52.3]} 18... Rb7 {[%clk 0:01:13.6]} 19. Rfa1 {[%clk 0:01:51.4]}
19... Rff7 {[%clk 0:01:07.1]} 20. Ra8 {[%clk 0:01:50.8]} 20... Rb8 {[%clk
0:01:07.1]} 21. R8a7 {[%clk 0:01:41.5]} 21... b5 {[%clk 0:00:59.8]} 22. Qc3
{[%clk 0:01:39.1]} 22... Bf8 {[%clk 0:00:57.4]} 23. Rxf7 {[%clk 0:01:32.7]}
23... Kxf7 {[%clk 0:00:57.5]} 24. Ra7+ {[%clk 0:01:20.9]} 24... Rb7 {[%clk
0:00:57.3]} 25. Ra8 {[%clk 0:01:20.5]} 25... c4 {[%clk 0:00:49.4]} 26. Rxc8
{[%clk 0:01:16.7]} 26... Qe6 {[%clk 0:00:19.5]} 27. Ra8 {[%clk 0:01:12.9]} 27...
c5 {[%clk 0:00:14.2]} 28. bxc4 {[%clk 0:01:07.7]} 28... b4 {[%clk 0:00:13.7]}
29. Qb3 {[%clk 0:01:07.4]} 29... f5 {[%clk 0:00:12.6]} 30. Ng5+ {[%clk
0:01:06.6]} 1-0

[Event "Early-Titled-Tuesday-Blitz-October-17-2023"]
[Site "Chess.com"]
[Date "2023.10.17"]
[Round "5"]
[White "JiiHart"]
[Black "Bala-Afiada"]
[Result "1-0"]
[WhiteElo "2200"]
[BlackElo "1908"]
[TimeControl "180+1"]
[EndTime "8:56:33 PDT"]
[Termination "JiiHart won by resignation"]

1. e4 {[%clk 0:03:00.9]} 1... c5 {[%clk 0:02:55.8]} 2. c3 {[%clk 0:03:00.6]}
2... Nf6 {[%clk 0:02:55.1]} 3. e5 {[%clk 0:03:00.6]} 3... Nd5 {[%clk 0:02:53.7]}
4. d4 {[%clk 0:03:00.6]} 4... cxd4 {[%clk 0:02:52.4]} 5. Nf3 {[%clk 0:03:00.6]}
5... Nc6 {[%clk 0:02:52.1]} 6. cxd4 {[%clk 0:03:00.7]} 6... d6 {[%clk
0:02:51.9]} 7. Nc3 {[%clk 0:02:58.9]} 7... Nxc3 {[%clk 0:02:28.3]} 8. bxc3
{[%clk 0:02:56]} 8... dxe5 {[%clk 0:02:28.7]} 9. dxe5 {[%clk 0:02:56.2]} 9...
Qxd1+ {[%clk 0:02:28]} 10. Kxd1 {[%clk 0:02:56.5]} 10... Bg4 {[%clk 0:02:26.9]}
11. Be2 {[%clk 0:02:50.5]} 11... O-O-O+ {[%clk 0:02:26.7]} 12. Kc2 {[%clk
0:02:34.9]} 12... Bxf3 {[%clk 0:02:13.7]} 13. Bxf3 {[%clk 0:02:29.9]} 13... Nxe5
{[%clk 0:02:14]} 14. Be2 {[%clk 0:02:25.1]} 14... e6 {[%clk 0:02:10.9]} 15. Be3
{[%clk 0:02:13]} 15... a6 {[%clk 0:01:49.2]} 16. Rab1 {[%clk 0:02:09.7]} 16...
Be7 {[%clk 0:01:34.5]} 17. Rb3 {[%clk 0:01:45.1]} 17... Rd7 {[%clk 0:01:28.1]}
18. Rhb1 {[%clk 0:01:41.6]} 18... Nc6 {[%clk 0:01:02.2]} 19. Bb6 {[%clk
0:01:17.2]} 19... Bd6 {[%clk 0:00:49.1]} 20. Bf3 {[%clk 0:01:14.4]} 20... Bc7
{[%clk 0:00:37.8]} 21. Bxc7 {[%clk 0:01:00.3]} 21... Rxc7 {[%clk 0:00:37.4]} 22.
Bxc6 {[%clk 0:00:59.8]} 22... Rxc6 {[%clk 0:00:36.8]} 23. Rxb7 {[%clk
0:00:58.8]} 23... Rd8 {[%clk 0:00:15.9]} 24. Rb8+ {[%clk 0:00:52.5]} 24... Kd7
{[%clk 0:00:13.7]} 25. Rd1+ {[%clk 0:00:50.9]} 1-0

[Event "Early-Titled-Tuesday-Blitz-October-17-2023"]
[Site "Chess.com"]
[Date "2023.10.17"]
[Round "5"]
[White "Khromkin"]
[Black "LuisFSiles"]
[Result "1-0"]
[WhiteElo "2525"]
[BlackElo "2329"]
[TimeControl "180+1"]
[EndTime "8:56:34 PDT"]
[Termination "Khromkin won on time"]

1. d4 {[%clk 0:02:55.2]} 1... Nf6 {[%clk 0:02:59.6]} 2. c4 {[%clk 0:02:54.4]}
2... g6 {[%clk 0:02:59.8]} 3. Nf3 {[%clk 0:02:55]} 3... Bg7 {[%clk 0:03:00]} 4.
Nc3 {[%clk 0:02:55.9]} 4... O-O {[%clk 0:02:59.7]} 5. g3 {[%clk 0:02:56]} 5...
d6 {[%clk 0:02:59.9]} 6. Bg2 {[%clk 0:02:56.6]} 6... c6 {[%clk 0:03:00.5]} 7.
O-O {[%clk 0:02:57.2]} 7... Qa5 {[%clk 0:03:01.1]} 8. h3 {[%clk 0:02:56.9]} 8...
e5 {[%clk 0:03:00.8]} 9. d5 {[%clk 0:02:46.3]} 9... cxd5 {[%clk 0:02:49.8]} 10.
cxd5 {[%clk 0:02:46.4]} 10... Bd7 {[%clk 0:02:43.3]} 11. a3 {[%clk 0:02:46.1]}
11... Rc8 {[%clk 0:02:42.5]} 12. Be3 {[%clk 0:01:50.3]} 12... Rxc3 {[%clk
0:02:10.8]} 13. bxc3 {[%clk 0:01:49.2]} 13... Nxd5 {[%clk 0:02:09.9]} 14. Bd2
{[%clk 0:01:42.4]} 14... Nb6 {[%clk 0:01:26.8]} 15. c4 {[%clk 0:01:38.5]} 15...
Qa6 {[%clk 0:01:17.5]} 16. Bb4 {[%clk 0:01:30.9]} 16... Nxc4 {[%clk 0:01:02.9]}
17. Ng5 {[%clk 0:01:16.4]} 17... Nc6 {[%clk 0:00:41]} 18. Bd5 {[%clk 0:01:10.6]}
18... Nd8 {[%clk 0:00:14.1]} 19. Rc1 {[%clk 0:01:01.1]} 19... Rc8 {[%clk
0:00:13.9]} 20. Bxc4 {[%clk 0:00:55.4]} 20... Rxc4 {[%clk 0:00:12.3]} 21. Rxc4
{[%clk 0:00:54.5]} 21... Qxc4 {[%clk 0:00:11.6]} 22. Qxd6 {[%clk 0:00:54.7]}
22... Qc6 {[%clk 0:00:05.1]} 23. Rd1 {[%clk 0:00:49.4]} 1-0

[Event "Early-Titled-Tuesday-Blitz-October-17-2023"]
[Site "Chess.com"]
[Date "2023.10.17"]
[Round "5"]
[White "Khuslen2008"]
[Black "Deadmold"]
[Result "0-1"]
[WhiteElo "2275"]
[BlackElo "2198"]
[TimeControl "180+1"]
[EndTime "8:56:38 PDT"]
[Termination "Deadmold won by resignation"]

1. d4 {[%clk 0:02:59.1]} 1... d5 {[%clk 0:02:59.7]} 2. c4 {[%clk 0:02:59.1]}
2... e6 {[%clk 0:03:00.1]} 3. Nc3 {[%clk 0:02:59.1]} 3... c5 {[%clk 0:03:00.2]}
4. cxd5 {[%clk 0:02:52.8]} 4... exd5 {[%clk 0:03:01.1]} 5. Nf3 {[%clk
0:02:52.8]} 5... Nc6 {[%clk 0:03:01.2]} 6. g3 {[%clk 0:02:50.2]} 6... c4 {[%clk
0:03:01.7]} 7. Bg2 {[%clk 0:02:49.8]} 7... Bb4 {[%clk 0:03:01.8]} 8. O-O {[%clk
0:02:49.1]} 8... Nge7 {[%clk 0:03:02]} 9. a3 {[%clk 0:02:49.1]} 9... Ba5 {[%clk
0:03:01.6]} 10. Ne5 {[%clk 0:02:37.3]} 10... O-O {[%clk 0:02:58.9]} 11. Nxc6
{[%clk 0:02:26.2]} 11... bxc6 {[%clk 0:02:59.8]} 12. Bg5 {[%clk 0:02:25.9]}
12... Rb8 {[%clk 0:02:46.8]} 13. Qd2 {[%clk 0:02:14.6]} 13... Rb3 {[%clk
0:02:32.2]} 14. Bxe7 {[%clk 0:01:44.3]} 14... Qxe7 {[%clk 0:02:30]} 15. Nxd5
{[%clk 0:01:40.3]} 15... cxd5 {[%clk 0:02:12.1]} 16. Qxa5 {[%clk 0:01:39.7]}
16... Qxe2 {[%clk 0:01:54.4]} 17. Rfe1 {[%clk 0:01:38.1]} 17... Qxb2 {[%clk
0:01:47.7]} 18. Bxd5 {[%clk 0:01:36.5]} 18... Rb5 {[%clk 0:01:41.2]} 19. Bxf7+
{[%clk 0:01:07.8]} 19... Kxf7 {[%clk 0:01:29.2]} 20. Qc7+ {[%clk 0:00:55]} 20...
Kg8 {[%clk 0:01:26.8]} 21. Qxc4+ {[%clk 0:00:54.6]} 21... Kh8 {[%clk 0:01:26.8]}
22. Rf1 {[%clk 0:00:23.6]} 22... Bh3 {[%clk 0:01:17.6]} 23. Ra2 {[%clk
0:00:07.4]} 23... Bxf1 {[%clk 0:01:06]} 24. Kxf1 {[%clk 0:00:06]} 24... Qb3
{[%clk 0:00:59.3]} 25. Qc6 {[%clk 0:00:02.7]} 0-1

[Event "Early-Titled-Tuesday-Blitz-October-17-2023"]
[Site "Chess.com"]
[Date "2023.10.17"]
[Round "5"]
[White "ActorXu"]
[Black "kirillshevchenko"]
[Result "1/2-1/2"]
[WhiteElo "2790"]
[BlackElo "2928"]
[TimeControl "180+1"]
[EndTime "8:56:39 PDT"]
[Termination "Game drawn by repetition"]

1. e4 {[%clk 0:03:00.9]} 1... e5 {[%clk 0:02:58.9]} 2. Nf3 {[%clk 0:03:01.1]}
2... Nc6 {[%clk 0:02:58.8]} 3. Bc4 {[%clk 0:03:01.6]} 3... Nf6 {[%clk
0:02:58.1]} 4. d3 {[%clk 0:03:01.7]} 4... d5 {[%clk 0:02:54.8]} 5. exd5 {[%clk
0:03:01.4]} 5... Nxd5 {[%clk 0:02:55.7]} 6. O-O {[%clk 0:03:00.2]} 6... Nb6
{[%clk 0:02:56.3]} 7. Bb5 {[%clk 0:02:54.4]} 7... Bd6 {[%clk 0:02:54.9]} 8. Re1
{[%clk 0:02:34.5]} 8... f6 {[%clk 0:02:54.4]} 9. d4 {[%clk 0:02:28.9]} 9... O-O
{[%clk 0:02:18.1]} 10. Bxc6 {[%clk 0:02:28.2]} 10... bxc6 {[%clk 0:02:19]} 11.
dxe5 {[%clk 0:02:19.4]} 11... fxe5 {[%clk 0:02:19.6]} 12. Bg5 {[%clk 0:02:07.3]}
12... Qe8 {[%clk 0:02:19]} 13. Nbd2 {[%clk 0:02:01.4]} 13... Qg6 {[%clk
0:02:13.1]} 14. Bh4 {[%clk 0:01:57.1]} 14... Bf5 {[%clk 0:02:09.2]} 15. Nxe5
{[%clk 0:01:40.5]} 15... Bxe5 {[%clk 0:01:54.1]} 16. Rxe5 {[%clk 0:01:39.9]}
16... Bxc2 {[%clk 0:01:55]} 17. Qe2 {[%clk 0:01:35.8]} 17... Nd5 {[%clk
0:01:55.3]} 18. Bg3 {[%clk 0:01:33.1]} 18... Bd3 {[%clk 0:01:46.1]} 19. Qh5
{[%clk 0:01:32.8]} 19... Qxh5 {[%clk 0:01:29.4]} 20. Rxh5 {[%clk 0:01:33]} 20...
Rfe8 {[%clk 0:01:30.3]} 21. Re5 {[%clk 0:01:33.5]} 21... Rxe5 {[%clk 0:01:24.6]}
22. Bxe5 {[%clk 0:01:33.6]} 22... Re8 {[%clk 0:01:25.4]} 23. f4 {[%clk
0:01:34.1]} 23... g5 {[%clk 0:01:24]} 24. g3 {[%clk 0:01:34.4]} 24... gxf4
{[%clk 0:01:21.2]} 25. gxf4 {[%clk 0:01:34.7]} 25... Kf7 {[%clk 0:01:21.9]} 26.
Rc1 {[%clk 0:01:34.2]} 26... Re6 {[%clk 0:01:20]} 27. Kf2 {[%clk 0:01:32.6]}
27... Bf5 {[%clk 0:01:01.9]} 28. Nf3 {[%clk 0:01:31.9]} 28... Rh6 {[%clk
0:00:55.7]} 29. Rg1 {[%clk 0:01:28.7]} 29... Rg6 {[%clk 0:00:54.9]} 30. Rxg6
{[%clk 0:01:16.2]} 30... hxg6 {[%clk 0:00:53.7]} 31. Nd4 {[%clk 0:01:15.9]}
31... Bd7 {[%clk 0:00:53.8]} 32. Nb3 {[%clk 0:01:13.8]} 32... Bf5 {[%clk
0:00:47.4]} 33. Nc5 {[%clk 0:01:08.8]} 33... Nb4 {[%clk 0:00:44.2]} 34. a3
{[%clk 0:01:08.3]} 34... Nd3+ {[%clk 0:00:44.3]} 35. Nxd3 {[%clk 0:01:08.5]}
35... Bxd3 {[%clk 0:00:45.2]} 36. Ke3 {[%clk 0:01:08.7]} 36... Bf1 {[%clk
0:00:44.1]} 37. Kd4 {[%clk 0:01:06.8]} 37... Ke6 {[%clk 0:00:43.7]} 38. Kc5
{[%clk 0:01:07.3]} 38... Kd7 {[%clk 0:00:43.5]} 39. Kd4 {[%clk 0:01:02.9]} 39...
a6 {[%clk 0:00:42.7]} 40. Kc5 {[%clk 0:01:03.4]} 40... Be2 {[%clk 0:00:42.8]}
41. Kd4 {[%clk 0:01:04]} 41... Bf1 {[%clk 0:00:43.2]} 42. Kc5 {[%clk 0:01:04.7]}
42... Be2 {[%clk 0:00:43.5]} 43. Kd4 {[%clk 0:01:05.4]} 43... Bf1 {[%clk
0:00:44]} 1/2-1/2

[Event "Early-Titled-Tuesday-Blitz-October-17-2023"]
[Site "Chess.com"]
[Date "2023.10.17"]
[Round "5"]
[White "Ranindu2003"]
[Black "guillembaches"]
[Result "1-0"]
[WhiteElo "2778"]
[BlackElo "2510"]
[TimeControl "180+1"]
[EndTime "8:56:44 PDT"]
[Termination "Ranindu2003 won on time"]

1. e4 {[%clk 0:03:00.9]} 1... d5 {[%clk 0:03:00.2]} 2. exd5 {[%clk 0:03:00.6]}
2... Qxd5 {[%clk 0:03:01.1]} 3. Nc3 {[%clk 0:03:01.3]} 3... Qa5 {[%clk
0:03:01.2]} 4. d4 {[%clk 0:03:02]} 4... Nf6 {[%clk 0:03:01.3]} 5. Nf3 {[%clk
0:03:02.1]} 5... Bf5 {[%clk 0:03:01.2]} 6. Bd2 {[%clk 0:03:00.6]} 6... e6 {[%clk
0:03:00.2]} 7. Ne5 {[%clk 0:02:57.6]} 7... Qb6 {[%clk 0:02:50.5]} 8. Qf3 {[%clk
0:02:54.3]} 8... Bxc2 {[%clk 0:02:30.3]} 9. Rc1 {[%clk 0:02:25.2]} 9... Bg6
{[%clk 0:02:02.8]} 10. Na4 {[%clk 0:01:59.9]} 10... Qxd4 {[%clk 0:01:53.1]} 11.
Qxb7 {[%clk 0:01:52.7]} 11... Qe4+ {[%clk 0:01:42.5]} 12. Qxe4 {[%clk
0:01:52.3]} 12... Bxe4 {[%clk 0:01:43.1]} 13. Bb5+ {[%clk 0:01:40.6]} 13... c6
{[%clk 0:01:32.7]} 14. Nxc6 {[%clk 0:01:39.8]} 14... Nxc6 {[%clk 0:01:28.9]} 15.
Rxc6 {[%clk 0:01:38.4]} 15... Kd8 {[%clk 0:00:17]} 16. Ba5+ {[%clk 0:01:34.5]}
16... Ke7 {[%clk 0:00:17.1]} 17. Bb4+ {[%clk 0:01:25.2]} 17... Kd8 {[%clk
0:00:16.9]} 18. Ba5+ {[%clk 0:01:23.2]} 18... Ke7 {[%clk 0:00:17.2]} 19. Rc7+
{[%clk 0:01:18.1]} 19... Kd6 {[%clk 0:00:17.4]} 20. O-O {[%clk 0:01:17.1]} 20...
Be7 {[%clk 0:00:06.3]} 21. Rd1+ {[%clk 0:01:07.4]} 21... Nd5 {[%clk 0:00:06.3]}
22. Rd7+ {[%clk 0:01:01.2]} 22... Ke5 {[%clk 0:00:05.3]} 23. Bc3+ {[%clk
0:00:48.6]} 23... Nxc3 {[%clk 0:00:03.9]} 24. Nxc3 {[%clk 0:00:48.3]} 1-0

[Event "Early-Titled-Tuesday-Blitz-October-17-2023"]
[Site "Chess.com"]
[Date "2023.10.17"]
[Round "5"]
[White "Zavgorodniy_Sergiy"]
[Black "atalz0"]
[Result "1/2-1/2"]
[WhiteElo "2665"]
[BlackElo "2512"]
[TimeControl "180+1"]
[EndTime "8:56:46 PDT"]
[Termination "Game drawn by repetition"]

1. e4 {[%clk 0:03:00.9]} 1... c6 {[%clk 0:02:59.6]} 2. d4 {[%clk 0:03:00.2]}
2... d5 {[%clk 0:03:00.5]} 3. exd5 {[%clk 0:03:00.8]} 3... cxd5 {[%clk
0:03:00.5]} 4. c4 {[%clk 0:03:01.1]} 4... Nf6 {[%clk 0:03:00.3]} 5. Nc3 {[%clk
0:03:00.8]} 5... Nc6 {[%clk 0:03:00.5]} 6. Nf3 {[%clk 0:03:00.7]} 6... Bg4
{[%clk 0:03:00.6]} 7. cxd5 {[%clk 0:03:00]} 7... Nxd5 {[%clk 0:03:00.7]} 8. Qb3
{[%clk 0:03:00]} 8... Bxf3 {[%clk 0:03:00.6]} 9. gxf3 {[%clk 0:02:58.3]} 9... e6
{[%clk 0:03:01.2]} 10. Qxb7 {[%clk 0:02:53.2]} 10... Nxd4 {[%clk 0:03:01.5]} 11.
Bb5+ {[%clk 0:02:51.8]} 11... Nxb5 {[%clk 0:03:01.9]} 12. Qc6+ {[%clk
0:02:49.9]} 12... Ke7 {[%clk 0:03:02.5]} 13. Qxb5 {[%clk 0:02:49.9]} 13... Qd7
{[%clk 0:03:03.2]} 14. Qe2 {[%clk 0:02:49.4]} 14... Nxc3 {[%clk 0:02:51]} 15.
bxc3 {[%clk 0:02:48.8]} 15... f6 {[%clk 0:02:37.4]} 16. O-O {[%clk 0:02:42.6]}
16... Kf7 {[%clk 0:02:37.7]} 17. Qe4 {[%clk 0:02:38.8]} 17... Rc8 {[%clk
0:02:11.9]} 18. Be3 {[%clk 0:02:37]} 18... Qc6 {[%clk 0:01:58]} 19. Rfd1 {[%clk
0:02:27.1]} 19... Be7 {[%clk 0:01:48.1]} 20. Bxa7 {[%clk 0:02:20.7]} 20... Qxe4
{[%clk 0:01:45.2]} 21. fxe4 {[%clk 0:02:20]} 21... Rxc3 {[%clk 0:01:46.1]} 22.
a4 {[%clk 0:02:20]} 22... Bc5 {[%clk 0:01:30.1]} 23. Rd7+ {[%clk 0:02:09.7]}
23... Kg6 {[%clk 0:01:29.6]} 24. a5 {[%clk 0:02:01.7]} 24... Bxa7 {[%clk
0:01:23.2]} 25. Rxa7 {[%clk 0:02:02.6]} 25... Rhc8 {[%clk 0:01:20.8]} 26. Kg2
{[%clk 0:01:58.3]} 26... Rc1 {[%clk 0:01:20.4]} 27. Ra3 {[%clk 0:01:57.7]} 27...
R8c3 {[%clk 0:01:20.5]} 28. Rxc3 {[%clk 0:01:45.3]} 28... Rxc3 {[%clk
0:01:21.4]} 29. Rb7 {[%clk 0:01:19.7]} 29... Ra3 {[%clk 0:01:17.6]} 30. Rb5
{[%clk 0:01:19.6]} 30... e5 {[%clk 0:01:13]} 31. f3 {[%clk 0:01:10.6]} 31... Kg5
{[%clk 0:01:04.3]} 32. Kg3 {[%clk 0:01:09.8]} 32... h5 {[%clk 0:00:57.6]} 33.
h4+ {[%clk 0:01:06.8]} 33... Kh6 {[%clk 0:00:54.9]} 34. Rc5 {[%clk 0:01:06.3]}
34... Ra1 {[%clk 0:00:53.5]} 35. Kf2 {[%clk 0:01:03.3]} 35... Ra2+ {[%clk
0:00:44.8]} 36. Kg3 {[%clk 0:01:03.3]} 36... Ra1 {[%clk 0:00:44.7]} 37. Rd5
{[%clk 0:01:03.4]} 37... Ra2 {[%clk 0:00:43.9]} 38. Kh3 {[%clk 0:00:59.4]} 38...
Kg6 {[%clk 0:00:43.8]} 39. Kg3 {[%clk 0:00:59.3]} 39... Kf7 {[%clk 0:00:44.2]}
40. Rb5 {[%clk 0:00:58.5]} 40... Kg6 {[%clk 0:00:37]} 41. Rd5 {[%clk 0:00:54.9]}
41... Kh6 {[%clk 0:00:37]} 42. Kh3 {[%clk 0:00:52.8]} 42... Kg6 {[%clk
0:00:37.3]} 43. Kg3 {[%clk 0:00:52.8]} 1/2-1/2

[Event "Early-Titled-Tuesday-Blitz-October-17-2023"]
[Site "Chess.com"]
[Date "2023.10.17"]
[Round "5"]
[White "HajiyevKanan"]
[Black "Yeremyan_ChessMate"]
[Result "0-1"]
[WhiteElo "2540"]
[BlackElo "2730"]
[TimeControl "180+1"]
[EndTime "8:56:52 PDT"]
[Termination "Yeremyan_ChessMate won by resignation"]

1. d4 {[%clk 0:03:00.9]} 1... Nf6 {[%clk 0:02:55.7]} 2. Nf3 {[%clk 0:03:00.8]}
2... g6 {[%clk 0:02:45.8]} 3. g3 {[%clk 0:02:59.5]} 3... Bg7 {[%clk 0:02:46.3]}
4. Bg2 {[%clk 0:03:00.2]} 4... O-O {[%clk 0:02:47.2]} 5. O-O {[%clk 0:03:01]}
5... d5 {[%clk 0:02:47.9]} 6. b3 {[%clk 0:03:01.7]} 6... c5 {[%clk 0:02:47.6]}
7. Bb2 {[%clk 0:03:01.6]} 7... Ne4 {[%clk 0:02:48.5]} 8. Nbd2 {[%clk 0:03:01]}
8... Nc6 {[%clk 0:02:48.9]} 9. e3 {[%clk 0:02:59.1]} 9... Bf5 {[%clk 0:02:41.6]}
10. c3 {[%clk 0:02:57.3]} 10... Nxd2 {[%clk 0:02:39.8]} 11. Qxd2 {[%clk
0:02:57.2]} 11... cxd4 {[%clk 0:02:38.4]} 12. exd4 {[%clk 0:02:47]} 12... Be4
{[%clk 0:02:33.3]} 13. Rfe1 {[%clk 0:02:35.8]} 13... e6 {[%clk 0:02:00.6]} 14.
Ne5 {[%clk 0:02:32.8]} 14... Nxe5 {[%clk 0:01:55.9]} 15. dxe5 {[%clk 0:02:31.1]}
15... Bxe5 {[%clk 0:01:55.3]} 16. f3 {[%clk 0:02:29.1]} 16... Bxf3 {[%clk
0:01:42]} 17. Rxe5 {[%clk 0:02:13.1]} 17... Bxg2 {[%clk 0:01:42]} 18. Kxg2
{[%clk 0:02:12.6]} 18... Qd7 {[%clk 0:01:41.9]} 19. c4 {[%clk 0:02:06.7]} 19...
f6 {[%clk 0:01:42.1]} 20. Re2 {[%clk 0:02:00.1]} 20... Rad8 {[%clk 0:01:42.7]}
21. Rd1 {[%clk 0:01:58]} 21... Qc6 {[%clk 0:01:39.6]} 22. Kh3 {[%clk 0:01:39.9]}
22... dxc4 {[%clk 0:01:38.7]} 23. Qxd8 {[%clk 0:01:18.3]} 23... Rxd8 {[%clk
0:01:38.3]} 24. Rxd8+ {[%clk 0:01:19.2]} 24... Kg7 {[%clk 0:01:34.7]} 25. bxc4
{[%clk 0:01:16.3]} 25... Qf3 {[%clk 0:01:29.3]} 26. Rd7+ {[%clk 0:01:06.4]}
26... Kh6 {[%clk 0:01:17.7]} 27. Bxf6 {[%clk 0:00:15.1]} 27... Qh5+ {[%clk
0:00:55.3]} 28. Bh4 {[%clk 0:00:12.5]} 28... Qxe2 {[%clk 0:00:55.7]} 29. g4
{[%clk 0:00:06.4]} 29... Qf3+ {[%clk 0:00:53.3]} 30. Bg3 {[%clk 0:00:06.6]}
30... Qf1+ {[%clk 0:00:53.9]} 31. Kh4 {[%clk 0:00:06.6]} 0-1